bitfinex-derivatives/quotes_BTCF0:USTF0_20250913
["timestamp","ask_amount","ask_price","bid_price","bid_amount"]
[1757781370320,0.12737847,115600.0,115590.0,1.10450924]
[1757781372122,0.12737847,115600.0,115590.0,1.90318924]
[1757781373321,0.12737847,115600.0,115590.0,1.90418924]
[1757781374521,0.05798765,115600.0,115590.0,1.90418924]
[1757781375427,0.05798765,115600.0,115590.0,1.10550924]
[1757781376022,0.05798765,115600.0,115590.0,1.91257568]
[1757781376322,0.05798765,115600.0,115590.0,1.90406924]
[1757781376519,0.05798765,115600.0,115590.0,1.90402924]
[1757781376924,0.05798765,115600.0,115590.0,1.10550924]
[1757781377118,0.05798765,115600.0,115590.0,1.90402924]
[1757781379826,0.05798765,115600.0,115590.0,1.91268853]
[1757781382729,0.08901032,115600.0,115590.0,1.91268853]
[1757781383518,0.05798765,115600.0,115590.0,1.91268853]
[1757781384120,0.04460765,115600.0,115590.0,1.91268853]
[1757781388734,0.02439316,115600.0,115590.0,1.91268853]
[1757781390436,0.02439316,115600.0,115590.0,2.10101065]
[1757781391135,0.01379,115610.0,115590.0,2.10101065]
[1757781391430,0.03813574,115610.0,115600.0,0.66636386]
[1757781391625,0.03813574,115610.0,115600.0,1.24636386]
[1757781391824,0.03813574,115610.0,115600.0,1.14450924]
[1757781392833,0.03813574,115610.0,115600.0,1.94262924]
[1757781395136,0.03813574,115610.0,115600.0,1.14550924]
[1757781395334,0.03813574,115610.0,115600.0,1.94354924]
[1757781403234,0.03813574,115610.0,115600.0,1.14550924]
[1757781403433,0.03813574,115610.0,115600.0,1.94338924]
[1757781404844,0.03813574,115610.0,115600.0,0.9418]
[1757781405141,0.03813574,115610.0,115600.0,1.94326924]
[1757781405538,0.0795824,115610.0,115600.0,0.7718]
[1757781405733,0.0795824,115610.0,115600.0,1.77326924]
[1757781406740,0.0795824,115610.0,115600.0,0.97550924]
[1757781407040,0.0795824,115610.0,115600.0,1.77326924]
[1757781407432,0.43143702,115610.0,115600.0,0.001]
[1757781407632,0.46245969,115610.0,115600.0,0.90057462]
[1757781408042,0.82325969,115610.0,115600.0,0.90057462]
[1757781409542,0.82325969,115610.0,115600.0,0.79872]
[1757781409742,0.82325969,115610.0,115600.0,0.90057462]
[1757781410230,0.72140507,115610.0,115600.0,0.90057462]
[1757781410432,0.82325969,115610.0,115600.0,0.90057462]
[1757781410640,0.72140507,115610.0,115600.0,0.90057462]
[1757781410941,0.82325969,115610.0,115600.0,0.90057462]
[1757781411144,0.82325969,115610.0,115600.0,0.79872]
[1757781411443,0.82325969,115610.0,115600.0,0.90057462]
[1757781413042,0.8697937,115610.0,115600.0,0.90057462]
[1757781413243,0.76793908,115610.0,115600.0,0.90057462]
[1757781413637,0.8697937,115610.0,115600.0,0.90057462]
[1757781414445,0.82325969,115610.0,115600.0,0.90057462]
[1757781415548,0.82325969,115610.0,115600.0,0.10285462]
[1757781415749,0.82325969,115610.0,115600.0,0.90041462]
[1757781416148,0.72140507,115610.0,115600.0,0.10285462]
[1757781416347,0.82325969,115610.0,115600.0,0.90037462]
[1757781420253,0.82325969,115610.0,115600.0,0.79852]
[1757781420452,0.82325969,115610.0,115600.0,0.90037462]
[1757781421054,0.83877103,115610.0,115600.0,0.90037462]
[1757781422452,0.73691641,115610.0,115600.0,1.00222924]
[1757781423154,0.73691641,115610.0,115600.0,0.90037462]
[1757781423351,0.47797103,115610.0,115600.0,0.90037462]
[1757781423551,0.50895412,115610.0,115600.0,0.90037462]
[1757781423954,0.50895412,115610.0,115600.0,1.00222924]
[1757781424254,0.4070995,115610.0,115600.0,1.00222924]
[1757781425452,0.37611641,115610.0,115600.0,1.00222924]
[1757781426357,0.37611641,115610.0,115600.0,0.90035304]
[1757781427845,0.58874945,115610.0,115600.0,0.001]
[1757781428050,0.83874945,115610.0,115600.0,0.001]
[1757781428453,0.79221544,115610.0,115600.0,0.001]
[1757781428852,0.0135,115580.0,115570.0,2.02204]
[1757781429052,0.06770818,115580.0,115570.0,1.638]
[1757781429252,0.09205392,115580.0,115570.0,1.638]
[1757781429959,0.26344892,115580.0,115570.0,1.268]
[1757781430256,0.20808315,115580.0,115570.0,1.27]
[1757781430454,0.16161588,115580.0,115570.0,1.27]
[1757781430656,0.16161588,115580.0,115570.0,1.26996]
[1757781430957,0.30991619,115580.0,115570.0,0.90916]
[1757781431157,0.26344892,115580.0,115570.0,0.90916]
[1757781431458,0.23247074,115580.0,115570.0,0.91016]
[1757781432556,0.23247074,115580.0,115570.0,0.113]
[1757781432757,0.1306377,115580.0,115570.0,0.113]
[1757781434656,0.59327074,115580.0,115570.0,0.113]
[1757781435854,0.4914377,115580.0,115570.0,0.113]
[1757781436056,0.59327074,115580.0,115570.0,0.113]
[1757781436958,0.84327074,115580.0,115570.0,0.003]
[1757781437146,0.87424892,115580.0,115570.0,0.003]
[1757781437547,0.87424892,115580.0,115570.0,0.002]
[1757781439062,0.77241588,115580.0,115570.0,0.002]
[1757781439260,0.87424892,115580.0,115570.0,0.002]
[1757781439458,1.67136892,115580.0,115570.0,0.002]
[1757781439962,1.56953588,115580.0,115570.0,0.002]
[1757781440158,1.67136892,115580.0,115570.0,0.002]
[1757781440357,0.87424892,115580.0,115570.0,0.002]
[1757781440557,1.67136892,115580.0,115570.0,0.002]
[1757781441958,1.56953588,115580.0,115570.0,0.002]
[1757781442262,1.67136892,115580.0,115570.0,0.002]
[1757781442960,0.87424892,115580.0,115570.0,0.002]
[1757781443160,1.67132892,115580.0,115570.0,0.002]
[1757781443856,0.77241588,115580.0,115570.0,0.002]
[1757781444061,1.20869588,115580.0,115570.0,0.002]
[1757781444258,1.1777177,115580.0,115570.0,0.002]
[1757781444462,0.77241588,115580.0,115570.0,0.002]
[1757781444655,1.56949588,115580.0,115570.0,0.002]
[1757781444962,1.20869588,115580.0,115570.0,0.002]
[1757781445660,0.77241588,115580.0,115570.0,0.002]
[1757781445862,1.20869588,115580.0,115570.0,0.002]
[1757781446260,1.56949588,115580.0,115570.0,0.002]
[1757781446757,0.52241588,115580.0,115570.0,0.002]
[1757781446956,0.1306377,115580.0,115570.0,0.71463304]
[1757781447159,0.1306377,115580.0,115570.0,0.8728]
[1757781447364,0.1074077,115580.0,115570.0,1.26463304]
[1757781448165,0.1074077,115580.0,115570.0,2.06167304]
[1757781449359,0.03784574,115580.0,115570.0,2.06167304]
[1757781453866,0.10819629,115580.0,115570.0,2.06167304]
[1757781454667,0.03784574,115580.0,115570.0,2.06167304]
[1757781454867,0.02434574,115580.0,115570.0,2.14815284]
[1757781456368,0.02434574,115580.0,115570.0,2.14915284]
[1757781457264,0.02434574,115580.0,115570.0,1.26563304]
[1757781457469,0.02434574,115580.0,115570.0,2.06259304]
[1757781459270,0.02434574,115580.0,115570.0,1.81259304]
[1757781459472,0.02402244,115580.0,115570.0,1.81259304]
[1757781459667,0.02402244,115580.0,115570.0,1.01563304]
[1757781459972,0.02402244,115580.0,115570.0,1.10211284]
[1757781460270,0.02402244,115580.0,115570.0,1.89899284]
[1757781460470,0.03359329,115590.0,115570.0,1.89899284]
[1757781460772,0.057612,115590.0,115580.0,0.46263304]
[1757781460971,0.057612,115590.0,115580.0,1.01263304]
[1757781461171,0.057612,115590.0,115580.0,1.80951304]
[1757781462171,0.057612,115590.0,115580.0,1.91134608]
[1757781462774,0.057612,115590.0,115580.0,1.80951304]
[1757781463473,0.057612,115590.0,115580.0,1.81051304]
[1757781463975,0.057612,115590.0,115580.0,1.81151304]
[1757781466173,0.057612,115590.0,115580.0,1.91334608]
[1757781466981,0.057612,115590.0,115580.0,1.81151304]
[1757781470488,0.03359329,115590.0,115580.0,1.81151304]
[1757781470687,0.03359329,115590.0,115580.0,1.70968]
[1757781470885,0.03359329,115590.0,115580.0,1.81131304]
[1757781471089,0.05813898,115590.0,115580.0,1.81131304]
[1757781472892,0.03804569,115590.0,115580.0,1.81131304]
[1757781473191,0.02454569,115590.0,115580.0,1.91314608]
[1757781474086,0.02454569,115590.0,115580.0,1.70948]
[1757781474286,0.02454569,115590.0,115580.0,1.11646608]
[1757781474689,0.03779569,115590.0,115580.0,1.91310608]
[1757781476207,0.03779569,115590.0,115580.0,1.11646608]
[1757781476388,0.03779569,115590.0,115580.0,1.91310608]
[1757781477094,0.03779569,115590.0,115580.0,1.11646608]
[1757781477290,0.03779569,115590.0,115580.0,1.91306608]
[1757781479094,0.03779569,115590.0,115580.0,1.11646608]
[1757781479294,0.03779569,115590.0,115580.0,1.91302608]
[1757781483294,0.03779569,115590.0,115580.0,1.91298608]
[1757781483695,0.03779569,115590.0,115580.0,1.11646608]
[1757781483896,0.03779569,115590.0,115580.0,1.91298608]
[1757781484997,0.03779569,115590.0,115580.0,1.11646608]
[1757781485198,0.03779569,115590.0,115580.0,1.81115304]
[1757781485997,0.03779569,115590.0,115580.0,1.81111304]
[1757781488405,0.03779569,115590.0,115580.0,1.91298874]
[1757781497406,0.03779569,115590.0,115580.0,2.01484311]
[1757781503722,0.03779569,115590.0,115580.0,2.03263996]
[1757781505815,0.03779569,115590.0,115580.0,1.23615996]
[1757781506023,0.03779569,115590.0,115580.0,2.03247996]
[1757781506212,0.03779569,115590.0,115580.0,1.93062559]
[1757781510822,0.03779569,115590.0,115580.0,2.03247996]
[1757781515429,0.02454569,115590.0,115580.0,2.03247996]
[1757781517028,0.02454569,115590.0,115580.0,2.03547996]
[1757781521824,0.02454569,115590.0,115580.0,2.63535186]
[1757781522532,0.02454569,115590.0,115580.0,1.75255996]
[1757781522730,0.02454569,115590.0,115580.0,2.54863996]
[1757781523326,0.02454569,115590.0,115580.0,1.75255996]
[1757781523630,0.02454569,115590.0,115580.0,2.54863996]
[1757781526033,0.02454569,115590.0,115580.0,2.63511206]
[1757781526234,0.02454569,115590.0,115580.0,1.83903206]
[1757781526422,0.02454569,115590.0,115580.0,1.75255996]
[1757781526628,0.02454569,115590.0,115580.0,2.54859996]
[1757781527034,0.02454569,115590.0,115580.0,1.75255996]
[1757781527330,0.03749569,115590.0,115580.0,2.54855996]
[1757781527732,0.02454569,115590.0,115580.0,2.54855996]
[1757781536239,0.03824569,115590.0,115580.0,1.50255996]
[1757781536437,0.03824569,115590.0,115580.0,2.29843996]
[1757781537242,0.03824569,115590.0,115580.0,2.03503996]
[1757781539445,0.03824569,115590.0,115580.0,0.93359685]
[1757781539646,0.03824569,115590.0,115580.0,2.03499996]
[1757781542941,0.03824569,115590.0,115580.0,1.13730559]
[1757781543141,0.03824569,115590.0,115580.0,2.03495996]
[1757781548351,0.03824569,115590.0,115580.0,1.93305169]
[1757781550448,0.03824569,115590.0,115580.0,1.93293169]
[1757781551250,0.03824569,115590.0,115580.0,1.13725169]
[1757781551446,0.03824569,115590.0,115580.0,1.03542427]
[1757781551648,0.03824569,115590.0,115580.0,1.83106427]
[1757781556557,0.03824569,115590.0,115580.0,1.93289169]
[1757781557357,0.02454569,115590.0,115580.0,1.93289169]
[1757781557758,0.02454569,115590.0,115580.0,1.38289169]
[1757781558555,0.03824569,115590.0,115580.0,1.38289169]
[1757781560355,0.02454569,115590.0,115580.0,1.38289169]
[1757781567761,0.03767569,115590.0,115580.0,1.38289169]
[1757781570363,0.03767569,115590.0,115580.0,1.17923685]
[1757781570660,0.03767569,115590.0,115580.0,1.38289169]
[1757781570863,0.06074569,115590.0,115580.0,1.28078427]
[1757781574963,0.06074569,115590.0,115580.0,1.28074427]
[1757781575162,0.06074569,115590.0,115580.0,0.48542427]
[1757781575358,0.06074569,115590.0,115580.0,1.28074427]
[1757781577268,0.06074569,115590.0,115580.0,1.28070427]
[1757781583679,0.06074569,115590.0,115580.0,1.17887685]
[1757781583872,0.06074569,115590.0,115580.0,1.28070427]
[1757781589988,0.06074569,115590.0,115580.0,1.81070427]
[1757781593187,0.03767569,115590.0,115580.0,1.81070427]
[1757781593386,0.03767569,115590.0,115580.0,1.91253169]
[1757781596894,0.03767569,115590.0,115580.0,1.81070427]
[1757781600301,0.03767569,115590.0,115580.0,1.81030427]
[1757781603705,0.03767569,115590.0,115580.0,1.91213169]
[1757781607806,0.02454569,115590.0,115580.0,1.91213169]
[1757781608513,0.02454569,115590.0,115580.0,2.0139571]
[1757781610710,0.03792569,115590.0,115580.0,2.0139571]
[1757781613714,0.03792569,115590.0,115580.0,1.2190771]
[1757781613907,0.03792569,115590.0,115580.0,2.0137171]
[1757781614303,0.03792569,115590.0,115580.0,1.91189035]
[1757781615510,0.03792569,115590.0,115580.0,1.11725035]
[1757781615716,0.03792569,115590.0,115580.0,1.91185035]
[1757781616420,0.03792569,115590.0,115580.0,1.11725035]
[1757781616717,0.03792569,115590.0,115580.0,1.91185035]
[1757781617112,0.03792569,115590.0,115580.0,1.70819685]
[1757781617321,0.03792569,115590.0,115580.0,1.91185035]
[1757781621012,0.03792569,115590.0,115580.0,1.0994535]
[1757781621320,0.03792569,115590.0,115580.0,1.8939335]
[1757781621515,0.28792569,115590.0,115580.0,1.8939335]
[1757781627021,0.77206244,115590.0,115580.0,0.535]
[1757781627324,0.92035646,115590.0,115580.0,0.005]
[1757781627528,0.03416,115570.0,115560.0,0.913409]
[1757781627818,0.54775762,115570.0,115560.0,0.993409]
[1757781628014,0.57230331,115570.0,115560.0,0.993409]
[1757781628213,0.61213146,115570.0,115560.0,0.97622675]
[1757781629222,0.61213146,115570.0,115560.0,0.97822675]
[1757781631625,0.62096195,115570.0,115560.0,0.8764]
[1757781631921,0.62096195,115570.0,115560.0,0.97822675]
[1757781632923,0.62096195,115570.0,115560.0,0.18382675]
[1757781633218,0.62096195,115570.0,115560.0,0.082]
[1757781635516,0.87096195,115570.0,115560.0,0.001]
[1757781637328,0.7691352,115570.0,115560.0,0.001]
[1757781637525,0.87096195,115570.0,115560.0,0.001]
[1757781638231,1.66532195,115570.0,115560.0,0.001]
[1757781639318,1.41532195,115570.0,115560.0,0.001]
[1757781639521,1.41632195,115570.0,115560.0,0.001]
[1757781639921,0.62196195,115570.0,115560.0,0.001]
[1757781640624,0.62196195,115570.0,115550.0,0.10182675]
[1757781640625,0.01265,115560.0,115550.0,0.10182675]
[1757781640821,0.49678675,115560.0,115550.0,0.11182675]
[1757781641024,0.41950569,115560.0,115550.0,0.11182675]
[1757781641628,0.52133244,115560.0,115550.0,0.11182675]
[1757781641826,0.52133244,115560.0,115550.0,0.011]
[1757781642026,0.52133244,115560.0,115550.0,0.11282675]
[1757781643236,0.54139312,115560.0,115550.0,0.11282675]
[1757781643923,0.54139312,115560.0,115550.0,0.001]
[1757781644329,0.54139312,115560.0,115550.0,0.10282675]
[1757781646941,0.54133512,115560.0,115550.0,0.10282675]
[1757781647245,0.67414004,115560.0,115550.0,0.001]
[1757781647636,0.7206073,115560.0,115550.0,0.001]
[1757781648239,0.68962913,115560.0,115550.0,0.001]
[1757781651241,1.49947823,115560.0,115550.0,0.001]
[1757781654545,1.29582473,115560.0,115550.0,0.001]
[1757781654748,1.49947823,115560.0,115550.0,0.001]
[1757781655247,0.60329148,115560.0,115550.0,0.10282675]
[1757781655446,1.39765148,115560.0,115550.0,0.001]
[1757781655745,1.49947823,115560.0,115550.0,0.10282675]
[1757781655944,1.49947823,115560.0,115550.0,0.001]
[1757781656245,1.43752187,115560.0,115550.0,0.001]
[1757781656447,1.49939967,115560.0,115550.0,0.001]
[1757781656850,0.70503967,115560.0,115550.0,0.001]
[1757781657149,1.33569512,115560.0,115550.0,0.10282675]
[1757781657447,1.33569512,115560.0,115550.0,0.001]
[1757781657644,1.33569512,115560.0,115550.0,0.10282675]
[1757781658843,1.33569512,115560.0,115550.0,0.001]
[1757781659044,1.33569512,115560.0,115550.0,0.10282675]
[1757781659346,1.33565512,115560.0,115550.0,0.10282675]
[1757781659546,1.23382837,115560.0,115550.0,0.10282675]
[1757781659747,1.41309967,115560.0,115550.0,0.10282675]
[1757781659948,1.31127292,115560.0,115550.0,0.10282675]
[1757781660251,1.33565512,115560.0,115550.0,0.10282675]
[1757781660442,0.60324031,115560.0,115550.0,0.10282675]
[1757781660642,0.50141381,115560.0,115550.0,0.35282675]
[1757781661245,0.48594404,115560.0,115550.0,0.251]
[1757781661546,0.48594404,115560.0,115550.0,0.92282675]
[1757781661738,0.48594404,115560.0,115550.0,0.821]
[1757781661945,0.48594404,115560.0,115550.0,0.321]
[1757781662146,0.48594404,115560.0,115550.0,0.72282675]
[1757781663249,0.12514404,115560.0,115550.0,0.72282675]
[1757781666748,0.12514404,115560.0,115550.0,0.621]
[1757781666948,0.12514404,115560.0,115550.0,1.08362675]
[1757781667348,0.15611604,115560.0,115550.0,1.08362675]
[1757781668151,0.15611604,115560.0,115550.0,0.9818]
[1757781668353,0.15611604,115560.0,115550.0,1.08371484]
[1757781668852,0.15611604,115560.0,115550.0,0.621]
[1757781669053,0.12514404,115560.0,115550.0,0.621]
[1757781669252,0.15611435,115560.0,115550.0,0.72291484]
[1757781669654,0.15611435,115560.0,115550.0,1.08371484]
[1757781669952,0.068166,115560.0,115550.0,1.08371484]
[1757781670153,0.03719569,115560.0,115550.0,1.08371484]
[1757781672656,0.03719569,115560.0,115550.0,1.87791484]
[1757781675059,0.03719569,115560.0,115550.0,1.88675918]
[1757781675766,0.03719569,115560.0,115550.0,1.87791484]
[1757781676054,0.03719569,115560.0,115550.0,1.87787484]
[1757781676861,0.03719569,115560.0,115550.0,1.08371484]
[1757781677060,0.03719569,115560.0,115550.0,1.87787484]
[1757781677960,0.03719569,115560.0,115550.0,1.88661599]
[1757781679051,0.03719569,115560.0,115550.0,1.88657599]
[1757781679256,0.01265,115560.0,115550.0,1.88657599]
[1757781679456,0.03681379,115560.0,115550.0,1.88657599]
[1757781681263,0.01265,115560.0,115550.0,1.08371484]
[1757781681468,0.01265,115560.0,115550.0,1.87783484]
[1757781682863,0.01265,115560.0,115550.0,0.9818]
[1757781683059,0.01265,115560.0,115550.0,1.08371484]
[1757781683463,0.01265,115560.0,115550.0,1.87779484]
[1757781683959,0.03577,115560.0,115550.0,0.47291484]
[1757781684266,0.41184611,115560.0,115550.0,0.79508]
[1757781684466,0.30993127,115560.0,115550.0,0.79508]
[1757781684767,0.30993127,115560.0,115550.0,0.89699484]
[1757781685464,0.30993127,115560.0,115550.0,0.10291484]
[1757781685662,0.30993127,115560.0,115550.0,0.89695484]
[1757781685863,0.30993127,115560.0,115550.0,0.001]
[1757781687669,0.77264611,115560.0,115550.0,0.001]
[1757781687968,0.80361642,115560.0,115550.0,0.001]
[1757781688267,0.85005209,115560.0,115550.0,0.001]
[1757781688670,0.81908178,115560.0,115550.0,0.001]
[1757781689267,0.03619,115540.0,115530.0,0.71107484]
[1757781689470,0.06035127,115540.0,115530.0,1.21107484]
[1757781689668,0.06035127,115540.0,115530.0,1.39599484]
[1757781691870,0.06035127,115540.0,115530.0,1.39699484]
[1757781692773,0.06035127,115540.0,115530.0,1.29508]
[1757781693073,0.06895675,115540.0,115530.0,1.39699484]
[1757781693773,0.06895675,115540.0,115530.0,0.501]
[1757781693968,0.06895675,115540.0,115530.0,1.39703484]
[1757781694462,0.06895675,115540.0,115530.0,0.501]
[1757781694774,0.06895675,115540.0,115530.0,1.29584]
[1757781695168,0.06895675,115540.0,115530.0,1.39775484]
[1757781695367,0.06895675,115540.0,115530.0,1.29584]
[1757781695574,0.06895675,115540.0,115530.0,1.39775484]
[1757781695774,0.06895675,115540.0,115530.0,1.39675484]
[1757781696073,0.06995675,115540.0,115530.0,1.39675484]
[1757781696770,0.06995675,115540.0,115530.0,1.29484]
[1757781697370,0.06995675,115540.0,115530.0,1.39675484]
[1757781697872,0.06995675,115540.0,115530.0,1.29484]
[1757781701776,0.06995675,115540.0,115530.0,1.2942]
[1757781702076,0.17187159,115540.0,115530.0,1.2942]
[1757781702477,0.06995675,115540.0,115530.0,1.2942]
[1757781703674,0.06995675,115540.0,115530.0,0.5]
[1757781703876,0.06995675,115540.0,115530.0,1.29512]
[1757781707983,0.06995675,115540.0,115530.0,1.39703484]
[1757781710781,0.06995675,115540.0,115530.0,1.29512]
[1757781710976,0.06995675,115540.0,115530.0,1.39703484]
[1757781713385,0.06995675,115540.0,115530.0,1.29512]
[1757781721590,0.06995675,115540.0,115530.0,1.39703484]
[1757781725294,0.06995675,115540.0,115530.0,1.29512]
[1757781725485,0.06995675,115540.0,115530.0,1.39703484]
[1757781726794,0.06995675,115540.0,115530.0,1.29512]
[1757781726991,0.06995675,115540.0,115530.0,1.39703484]
[1757781730399,0.17191097,115540.0,115530.0,1.39707422]
[1757781731799,0.06995675,115540.0,115530.0,1.39707422]
[1757781732097,0.17191097,115540.0,115530.0,1.39707422]
[1757781732600,0.06995675,115540.0,115530.0,1.39707422]
[1757781735787,0.06995675,115540.0,115530.0,1.29512]
[1757781735992,0.06995675,115540.0,115530.0,1.39707422]
[1757781740198,0.06995675,115540.0,115530.0,1.75787422]
[1757781740397,0.03823127,115540.0,115530.0,2.10982844]
[1757781740701,0.03823127,115540.0,115530.0,1.90592]
[1757781740901,0.03823127,115540.0,115530.0,2.10982844]
[1757781742097,0.03823127,115540.0,115530.0,1.1108]
[1757781742293,0.06808974,115540.0,115530.0,1.64631422]
[1757781742496,0.09225101,115540.0,115530.0,1.64631422]
[1757781742891,0.09225101,115540.0,115530.0,0.75]
[1757781743092,0.09225101,115540.0,115530.0,1.64635422]
[1757781743497,0.09225101,115540.0,115530.0,1.5444]
[1757781743698,0.09225101,115540.0,115530.0,1.64635422]
[1757781745006,0.09225101,115540.0,115530.0,1.9052]
[1757781745207,0.09225101,115540.0,115530.0,2.00715422]
[1757781750218,0.06130127,115540.0,115530.0,2.00715422]
[1757781751424,0.06130127,115540.0,115530.0,1.9052]
[1757781751718,0.06130127,115540.0,115530.0,2.00931422]
[1757781753123,0.06130127,115540.0,115530.0,1.21275422]
[1757781753316,0.06130127,115540.0,115530.0,2.00923422]
[1757781754923,0.06130127,115540.0,115530.0,1.90728]
[1757781755225,0.06130127,115540.0,115530.0,2.00923422]
[1757781757123,0.06130127,115540.0,115530.0,1.21275422]
[1757781757325,0.06130127,115540.0,115530.0,2.00907422]
[1757781757626,0.06130127,115540.0,115530.0,1.21275422]
[1757781757812,0.06130127,115540.0,115530.0,2.00899422]
[1757781758419,0.06130127,115540.0,115530.0,1.21275422]
[1757781758621,0.06130127,115540.0,115530.0,2.00895422]
[1757781758825,0.06130127,115540.0,115530.0,1.21275422]
[1757781759223,0.06130127,115540.0,115530.0,1.90696]
[1757781759424,0.06130127,115540.0,115530.0,1.75891422]
[1757781762024,0.06130127,115540.0,115530.0,1.75871422]
[1757781765829,0.06130127,115540.0,115530.0,1.65676]
[1757781766033,0.06130127,115540.0,115530.0,1.75871422]
[1757781766733,0.06130127,115540.0,115530.0,1.65676]
[1757781766928,0.06130127,115540.0,115530.0,1.75871422]
[1757781767127,0.41325549,115540.0,115530.0,0.8608]
[1757781767328,0.41325549,115540.0,115530.0,1.39743422]
[1757781767530,0.41325549,115540.0,115530.0,1.09743422]
[1757781770928,0.31130127,115540.0,115530.0,1.09743422]
[1757781771136,0.41325549,115540.0,115530.0,1.09743422]
[1757781771634,0.41325549,115540.0,115530.0,0.30195422]
[1757781773334,0.41325549,115540.0,115530.0,0.2]
[1757781773529,0.41325549,115540.0,115530.0,0.30195422]
[1757781774033,0.06130127,115540.0,115530.0,0.30195422]
[1757781774233,0.06130127,115540.0,115530.0,0.66275422]
[1757781775236,0.06130127,115540.0,115530.0,0.5608]
[1757781775435,0.06130127,115540.0,115530.0,0.66275422]
[1757781781745,0.06130127,115540.0,115530.0,0.5608]
[1757781781942,0.06130127,115540.0,115530.0,0.66275422]
[1757781782339,0.06130127,115540.0,115530.0,0.5608]
[1757781782643,0.06130127,115540.0,115530.0,0.66275422]
[1757781783846,0.06130127,115540.0,115530.0,0.5608]
[1757781784144,0.06130127,115540.0,115530.0,0.66275422]
[1757781787649,0.06130127,115540.0,115530.0,0.5608]
[1757781787849,0.06130127,115540.0,115530.0,0.66275422]
[1757781788248,0.06130127,115540.0,115530.0,0.98275422]
[1757781788748,0.06130127,115540.0,115530.0,0.8808]
[1757781788950,0.06130127,115540.0,115530.0,0.98275422]
[1757781789345,0.06130127,115540.0,115530.0,1.35528]
[1757781789650,0.06130127,115540.0,115530.0,1.45723422]
[1757781789852,0.06130127,115540.0,115530.0,1.35528]
[1757781790046,0.06130127,115540.0,115530.0,1.45723422]
[1757781791248,0.09225101,115540.0,115530.0,1.45723422]
[1757781791953,0.09225101,115540.0,115530.0,1.45719422]
[1757781792353,0.09225101,115540.0,115530.0,1.4571932]
[1757781792852,0.09225101,115540.0,115530.0,0.6627532]
[1757781793155,0.09225101,115540.0,115530.0,1.4571932]
[1757781795052,0.09225101,115540.0,115530.0,1.35524]
[1757781795252,0.09225101,115540.0,115530.0,1.4571932]
[1757781795451,0.06130127,115540.0,115530.0,1.4571932]
[1757781800159,0.06130127,115540.0,115530.0,0.6627532]
[1757781800360,0.06130127,115540.0,115530.0,1.4571932]
[1757781800555,0.06130127,115540.0,115530.0,1.35524]
[1757781800757,0.06130127,115540.0,115530.0,1.4571932]
[1757781801458,0.06130127,115540.0,115530.0,0.5508]
[1757781801957,0.06130127,115540.0,115530.0,0.6527532]
[1757781803162,0.06130127,115540.0,115530.0,1.4517132]
[1757781805358,0.0610625,115540.0,115530.0,1.4517132]
[1757781806956,0.0610625,115540.0,115530.0,1.0909132]
[1757781813862,0.0610625,115540.0,115530.0,1.4517132]
[1757781814066,0.0379925,115540.0,115530.0,1.34976]
[1757781814365,0.0379925,115540.0,115530.0,1.4517132]
[1757781818166,0.0379925,115540.0,115530.0,1.7617132]
[1757781818369,0.0379925,115540.0,115530.0,0.8608]
[1757781818560,0.0379925,115540.0,115530.0,1.4203932]
[1757781818765,0.0379925,115540.0,115530.0,1.7903932]
[1757781819670,0.0379925,115540.0,115530.0,1.4303932]
[1757781819969,0.0379925,115540.0,115530.0,1.8503932]
[1757781821569,0.0379925,115540.0,115530.0,1.4303932]
[1757781824169,0.0596025,115540.0,115520.0,0.3608]
[1757781824378,0.08628,115490.0,115440.0,0.17185434]
[1757781824676,0.01,115420.0,115360.0,0.02139]
[1757781824865,0.1019532,115370.0,115360.0,0.45846494]
[1757781825068,0.17227179,115370.0,115360.0,0.48467]
[1757781825265,0.17227179,115370.0,115360.0,0.45]
[1757781825266,0.18227179,115370.0,115360.0,0.45]
[1757781825565,0.49667664,115370.0,115360.0,0.01328]
[1757781825769,1.28018208,115370.0,115360.0,0.00405249]
[1757781826066,0.3462947,115340.0,115330.0,0.01328]
[1757781826271,0.01,115330.0,115320.0,0.01602858]
[1757781826468,0.5218341,115330.0,115320.0,0.01602858]
[1757781826667,0.7718341,115330.0,115320.0,0.01602858]
[1757781826868,0.01,115300.0,115270.0,0.01328]
[1757781827069,0.01,115300.0,115270.0,0.50674535]
[1757781827070,0.41661494,115280.0,115270.0,0.50674535]
[1757781827267,0.53775145,115280.0,115270.0,0.03467]
[1757781827468,0.84883804,115280.0,115260.0,0.01328]
[1757781827673,0.42188659,115270.0,115260.0,0.01328]
[1757781827871,0.39202488,115270.0,115230.0,0.01328]
[1757781828070,0.01,115230.0,115220.0,0.01328]
[1757781828272,0.50308565,115230.0,115220.0,0.01328]
[1757781828473,0.50308565,115230.0,115210.0,0.01328]
[1757781828474,0.3608,115220.0,115210.0,0.01328]
[1757781828670,0.43741583,115220.0,115210.0,0.01328]
[1757781828870,0.43741583,115220.0,115210.0,0.52813535]
[1757781829067,0.43741583,115220.0,115210.0,0.88463]
[1757781829265,0.43741583,115220.0,115210.0,1.24809535]
[1757781829266,0.39202488,115220.0,115210.0,1.24809535]
[1757781829475,0.39202488,115220.0,115210.0,1.64809535]
[1757781829673,0.11619109,115230.0,115220.0,0.01062]
[1757781829873,0.41619095,115240.0,115230.0,0.03566]
[1757781830074,0.41619095,115240.0,115230.0,0.97399395]
[1757781830075,0.3708,115240.0,115230.0,0.97399395]
[1757781830271,0.21843446,115250.0,115240.0,0.11262]
[1757781830467,0.3608,115280.0,115270.0,0.01262]
[1757781830669,0.3608,115280.0,115270.0,0.86262]
[1757781830870,0.3608,115280.0,115270.0,0.01262]
[1757781831068,0.3608,115280.0,115270.0,1.03626]
[1757781831269,0.3608,115280.0,115270.0,1.10965118]
[1757781831470,0.01,115290.0,115280.0,0.01347]
[1757781831676,0.43188659,115310.0,115280.0,1.25427]
[1757781831872,0.3708,115310.0,115300.0,0.01347]
[1757781832072,0.43188659,115330.0,115310.0,0.01347]
[1757781832270,0.01,115330.0,115320.0,0.98315]
[1757781832471,0.3608,115340.0,115330.0,0.01347]
[1757781832675,0.3608,115340.0,115330.0,0.98295]
[1757781832676,0.3708,115340.0,115330.0,0.98295]
[1757781832875,0.3708,115340.0,115330.0,1.89010118]
[1757781833075,0.3708,115340.0,115330.0,0.01347]
[1757781833272,0.3708,115340.0,115330.0,1.46938118]
[1757781833273,0.3608,115340.0,115330.0,1.46938118]
[1757781833474,0.3708,115350.0,115330.0,1.94938118]
[1757781833781,0.3608,115360.0,115350.0,0.01347]
[1757781833985,0.3708,115370.0,115360.0,0.01347]
[1757781834285,0.01,115370.0,115360.0,1.61954118]
[1757781834581,0.3708,115370.0,115360.0,1.49235]
[1757781834787,0.3608,115370.0,115360.0,1.74235]